[Event "Romanian Open 2021"]
[Site "Alba Iulia"]
[Date "2021.11.24"]
[Round "6.5"]
[White "Padurariu, Mihai-Edward"]
[Black "Nastore, Pavel-Alexandru"]
[Result "1/2-1/2"]
[ECO "B51"]
[WhiteElo "2251"]
[BlackElo "2249"]
[Annotator "ChessBase"]
[PlyCount "49"]
[EventDate "2021.11.21"]
[EventType "swiss"]
[EventCountry "ROU"]
[SourceTitle "playchess.com"]
[Source "ChessBase"]
[SourceQuality "1"]
[TimeControl "5400+30"]

1. e4 {[%emt 0:00:27]} c5 {[%emt 0:00:15]} 2. Nf3 {[%emt 0:00:16]} d6 {[%emt 0:00:04]} 3. d4 {[%emt 0:00:13]} cxd4 {[%emt 0:00:06]} 4. Qxd4 {[%emt 0:00:04]} Nc6 {[%emt 0:00:24]} 5. Bb5 {[%emt 0:00:23]} a6 {[%emt 0:01:13]} 6. Bxc6+ {[%emt 0:00:23]} bxc6 {[%emt 0:00:01]} 7. O-O {[%emt 0:00:59]} e5 {[%emt 0:00:20]} 8. Qd3 {[%emt 0:01:20]} Qc7 {[%emt 0:00:11]} 9. c4 {[%emt 0:00:51]} Be7 {[%emt 0:00:48]} 10. c5 {[%emt 0:02:54]} dxc5 {[%emt 0:00:08]} 11. Nbd2 {[%emt 0:05:23]} Nf6 {[%emt 0:03:19]} 12. Nc4 {[%emt 0:01:50]} Nd7 {[%emt 0:00:12]} 13. Be3 {[%emt 0:10:06]} O-O {[%emt 0:00:48]} 14. Rad1 {[%emt 0:02:01]} Rd8 {[%emt 0:08:33]} 15. Qc3 {[%emt 0:08:00]} f6 {[%emt 0:10:48]} 16. Qa5 {[%emt 0:01:31]} Ra7 {[%emt 0:13:39]} 17. Bd2 {[%emt 0:07:11]} Nb8 {[%emt 0:06:48]} 18. Qa3 {[%emt 0:10:42]} Qb7 {[%emt 0:08:41]} 19. Rc1 {[%emt 0:04:58]} a5 {[%emt 0:04:32]} 20. Bxa5 {[%emt 0:17:31]} Be6 {[%emt 0:00:49]} 21. Qc3 {[%emt 0:03:47]} Re8 {[%emt 0:00:23]} 22. Nfd2 {[%emt 0:04:24]} Nd7 {[%emt 0:06:13]} 23. a3 {[%emt 0:03:05]} Bf7 {[%emt 0:17:02]} 24. b4 {[%emt 0:01:59]} cxb4 {[%emt 0:17:13]} 25. axb4 {[%emt 0:12:42]} 1/2-1/2

[Event "Romanian Open 2021"]
[Site "Alba Iulia"]
[Date "2021.11.24"]
[Round "6.9"]
[White "Negrean, Andrei"]
[Black "Tudor, Henry Edward"]
[Result "1-0"]
[ECO "E05"]
[WhiteElo "1847"]
[BlackElo "1753"]
[Annotator "NA RC"]
[PlyCount "79"]
[EventDate "2021.11.21"]
[EventType "swiss"]
[EventCountry "ROU"]
[SourceTitle "playchess.com"]
[Source "ChessBase"]
[SourceQuality "1"]
[TimeControl "5400+30"]

{[%evp 17,75,-35,-27,-19,0,0,28,27,68,70,76,51,67,70,84,32767,32767,92,114,41,16,10,60,62,32767,32767,32767,32767,32767,32767,64,48,32767,46,76,92,100,84,135,154,235,251,270,268,270,144,259,0,287,289,465,474,727,660,829,696,633,668,787,922]} 1. d4 {[%emt 0:00:00]} Nf6 {[%emt 0:00:22]} 2. Nf3 {[%emt 0:00:22]} e6 {[%emt 0:00:12]} 3. g3 {[%emt 0:00:53]} d5 {[%emt 0:01:49]} 4. Bg2 {[%emt 0:00:34]} Be7 {[%emt 0:00:18]} 5. O-O {[%emt 0:02:39]} O-O {[%emt 0:00:35]} 6. c4 {[%emt 0:00:42]} dxc4 {[%emt 0:01:34]} 7. Qc2 {[%emt 0:03:01]} b5 {[%emt 0:00:14]} 8. a4 {[%emt 0:00:31]} b4 {[%emt 0:00:04]} 9. Qxc4 {[%emt 0:14:31]} Ba6 {[%emt 0:04:20]} 10. Qc2 {[%emt 0:01:14]} Bb7 {[%emt 0:10:42]} 11. Bg5 {[%emt 0:05:43]} Be4 {[%emt 0:10:40]} 12. Qc1 {[%emt 0:01:50]} h6 {[%emt 0:01:03]} 13. Bxf6 {[%emt 0:04:01]} Bxf6 {[%emt 0:00:04]} 14. Nbd2 {[%emt 0:02:04]} Bb7 {[%emt 0:00:24]} 15. Nb3 {[%emt 0:02:17]} Nd7 {[%emt 0:07:34]} 16. Na5 {[%emt 0:08:02]} Be4 {[%emt 0:03:04]} 17. Nc6 {[%emt 0:02:54]} Qc8 {[%emt 0:02:04]} 18. Ne1 {[%emt 0:07:20]} ({Stronger than} 18. Nxb4 c5 $15) ({Better is} 18. Nfe5 $16 Bxg2 19. Kxg2) 18... Bxg2 $1 {[%emt 0:00:49]} 19. Nxg2 {[%emt 0:00:13]} Qb7 {[%emt 0:00:35]} (19... Nb8 $11) 20. e3 {[%emt 0:10:34]} Nb8 {[%emt 0:12:47]} 21. Nxb8 {[%emt 0:10:51]} Raxb8 {[%emt 0:01:04]} 22. Qc5 {[%emt 0:01:46]} Rfc8 {[%emt 0:02:01]} 23. Nf4 {[%emt 0:02:03]} c6 {[%emt 0:04:21]} 24. Nd3 {[%emt 0:00:50]} Be7 {[%emt 0:03:39]} 25. Qc4 {[%emt 0:00:43]} a5 {[%emt 0:01:00]} 26. Nc5 {[%emt 0:02:05]} Qa7 {[%emt 0:00:56]} 27. Rfc1 {[%emt 0:00:32]} Rb6 {[%emt 0:04:45]} 28. Nxe6 $1 {[%emt 0:01:55]} Qa6 {[%emt 0:02:04]} (28... c5 $16 {keeps fighting.}) 29. Nc5 {[%emt 0:00:35]} Qxc4 {[%emt 0:01:09]} 30. Rxc4 {[%emt 0:00:02]} b3 $1 $11 {[%emt 0:00:01] and Black stays safe.} 31. Ra3 {[%emt 0:00:52]} (31. Rac1 $18 f6) 31... Rcb8 {[%emt 0:00:38]} (31... Rd8 $16 32. Ra1 Bxc5) 32. Ra1 $2 {[%emt 0:02:51]} (32. Kg2 $18) 32... Rb4 $2 {[%emt 0:00:31]} 33. Rc3 {[%emt 0:00:30]} R8b6 {[%emt 0:01:25]} (33... Ra8 $142 34. Nd3 Rb6) 34. Nd3 {[%emt 0:00:25]} c5 {[%emt 0:01:47]} (34... Kf8 $142 35. Kg2 f5) 35. Nxb4 {[%emt 0:01:16]} axb4 {[%emt 0:00:01]} 36. Rc4 {[%emt 0:00:34]} cxd4 {[%emt 0:00:23]} 37. exd4 {[%emt 0:00:07]} Re6 {[%emt 0:00:01]} 38. a5 $18 {[%emt 0:00:29]} Ra6 {[%emt 0:03:15]} 39. Rc8+ {[%emt 0:00:04]} Kh7 {[%emt 0:00:09]} 40. Rb8 {[%emt 0:00:12]} 1-0

[Event "Romanian Open 2021"]
[Site "Alba Iulia"]
[Date "2021.11.24"]
[Round "6.11"]
[White "Sava, Robert-Gabriel"]
[Black "Botea, David-Alexandru"]
[Result "1/2-1/2"]
[ECO "B09"]
[WhiteElo "1735"]
[BlackElo "2013"]
[Annotator "ChessBase"]
[PlyCount "106"]
[EventDate "2021.11.21"]
[EventType "swiss"]
[EventCountry "ROU"]
[SourceTitle "playchess.com"]
[Source "ChessBase"]
[SourceQuality "1"]
[TimeControl "5400+30"]

1. e4 {[%emt 0:00:09]} d6 {[%emt 0:00:07]} 2. d4 {[%emt 0:00:13]} Nf6 {[%emt 0:00:03]} 3. Nc3 {[%emt 0:00:23]} g6 {[%emt 0:00:05]} 4. f4 {[%emt 0:00:24]} Bg7 {[%emt 0:00:03]} 5. Bd3 {[%emt 0:00:47]} Nc6 {[%emt 0:00:30]} 6. Nf3 {[%emt 0:00:50]} Bg4 {[%emt 0:00:11]} 7. Be3 {[%emt 0:03:24]} e5 {[%emt 0:01:51]} 8. fxe5 {[%emt 0:08:54]} dxe5 {[%emt 0:00:11]} 9. dxe5 {[%emt 0:05:16]} Bxf3 {[%emt 0:11:06]} 10. gxf3 {[%emt 0:02:04]} Nxe5 {[%emt 0:01:00]} 11. Bb5+ {[%emt 0:03:14]} Nfd7 {[%emt 0:07:32]} 12. Be2 {[%emt 0:06:49]} Bh6 {[%emt 0:18:36]} 13. Qd2 {[%emt 0:13:30]} Qh4+ {[%emt 0:02:01]} 14. Kd1 {[%emt 0:00:41]} Bxe3 {[%emt 0:02:01]} 15. Qxe3 {[%emt 0:00:19]} Nb6 {[%emt 0:02:11]} 16. b3 {[%emt 0:02:36]} f5 {[%emt 0:15:52]} 17. exf5 {[%emt 0:02:18]} O-O-O+ {[%emt 0:00:21]} 18. Kc1 {[%emt 0:02:08]} Rhe8 {[%emt 0:03:05]} 19. Rd1 {[%emt 0:09:56]} Nd3+ {[%emt 0:03:06]} 20. Qxd3 {[%emt 0:00:12]} Rxd3 {[%emt 0:00:04]} 21. Rxd3 {[%emt 0:01:33]} Qxh2 {[%emt 0:21:40]} 22. fxg6 {[%emt 0:03:23]} hxg6 {[%emt 0:00:35]} 23. Bf1 {[%emt 0:05:36]} Re1+ {[%emt 0:07:39]} 24. Kb2 {[%emt 0:01:02]} Rxa1 {[%emt 0:00:01]} 25. Kxa1 {[%emt 0:00:02]} Qh1 {[%emt 0:01:11]} 26. Rd1 {[%emt 0:03:02]} Qxf3 {[%emt 0:00:24]} 27. Bd3 {[%emt 0:01:27]} Qf6 {[%emt 0:00:47]} 28. Kb2 {[%emt 0:00:28]} Nd5 {[%emt 0:00:51]} 29. Bf5+ {[%emt 0:00:16]} gxf5 {[%emt 0:01:11]} 30. Rxd5 {[%emt 0:00:04]} f4 {[%emt 0:00:19]} 31. Rd2 {[%emt 0:00:15]} f3 {[%emt 0:00:47]} 32. Rf2 {[%emt 0:00:13]} c5 {[%emt 0:00:23]} 33. a3 {[%emt 0:00:38]} a5 {[%emt 0:00:06]} 34. a4 {[%emt 0:00:12]} b6 {[%emt 0:00:21]} 35. Rf1 {[%emt 0:00:26]} f2 {[%emt 0:00:17]} 36. Ka2 {[%emt 0:00:31]} Qxc3 {[%emt 0:00:18]} 37. Rxf2 {[%emt 0:00:03]} Kb7 {[%emt 0:00:35]} 38. Re2 {[%emt 0:00:19]} b5 {[%emt 0:00:52]} 39. axb5 {[%emt 0:01:41]} Kb6 {[%emt 0:00:07]} 40. Kb1 {[%emt 0:00:09]} Kxb5 {[%emt 0:00:01]} 41. Re4 {[%emt 0:00:13]} Kc6 {[%emt 0:01:46]} 42. Rc4 {[%emt 0:01:20]} Qd2 {[%emt 0:00:23]} 43. Kb2 {[%emt 0:00:22]} Kd5 {[%emt 0:00:12]} 44. Kb1 {[%emt 0:01:19]} Qe2 {[%emt 0:00:39]} 45. Ra4 {[%emt 0:00:24]} Qe1+ {[%emt 0:00:06]} 46. Kb2 {[%emt 0:00:07]} Qd2 {[%emt 0:01:28]} 47. Rc4 {[%emt 0:00:45]} Qe2 {[%emt 0:00:02]} 48. Ra4 {[%emt 0:00:19]} Qe1 {[%emt 0:00:02]} 49. Rc4 {[%emt 0:00:11]} Qb4 {[%emt 0:00:56]} 50. Rxb4 {[%emt 0:00:20]} axb4 {[%emt 0:00:01]} 51. Kc1 {[%emt 0:00:13]} c4 {[%emt 0:01:13]} 52. bxc4+ {[%emt 0:00:08]} Kxc4 {[%emt 0:00:01]} 53. Kb2 {[%emt 0:00:05]} Kc5 {[%emt 0:00:12]} 1/2-1/2